[Event "Titled Tuesday Blitz July 4 Late 2023"]
[White "Andrej2004"]
[Black "Abduzhaparov"]
[WhiteElo "2659"]
[BlackElo "2366"]
[Result "1-0"]
[Round "2"]
[TimeControl "180+2"]
[Date "2023.07.04"]
[WhiteClock "0:00:14"]
[BlackClock "0:00:00"]
[Board "72"]

1. g3 {[%clk 0:02:41]}  d6 {[%clk 0:03:00]} 2. Bg2 {[%clk 0:02:41]}  e5 {[%clk 0:03:00]} 3. b3 {[%clk 0:02:40]}  Be7 {[%clk 0:03:00]} 4. Bb2 {[%clk 0:02:41]}  Nc6 {[%clk 0:03:01]} 5. d3 {[%clk 0:02:38]}  h5 {[%clk 0:03:00]} 6. h3 {[%clk 0:02:37]}  h4 {[%clk 0:03:00]} 7. g4 {[%clk 0:02:38]}  f5 {[%clk 0:03:00]} 8. gxf5 {[%clk 0:02:38]}  Bxf5 {[%clk 0:03:01]} 9. c4 {[%clk 0:02:38]}  Qd7 {[%clk 0:02:58]} 10. Nc3 {[%clk 0:02:38]}  Nf6 {[%clk 0:02:55]} 11. Qd2 {[%clk 0:02:38]}  Nh5 {[%clk 0:02:54]} 12. e3 {[%clk 0:02:36]}  Bg5 {[%clk 0:02:50]} 13. Nge2 {[%clk 0:02:35]}  O-O-O {[%clk 0:02:47]} 14. O-O-O {[%clk 0:02:35]}  Nd4 {[%clk 0:02:43]} 15. Kb1 {[%clk 0:02:32]}  Nxe2 {[%clk 0:02:36]} 16. Qxe2 {[%clk 0:02:30]}  Nf6 {[%clk 0:02:22]} 17. a3 {[%clk 0:02:22]}  Rhe8 {[%clk 0:02:21]} 18. Ka2 {[%clk 0:02:19]}  e4 {[%clk 0:02:21]} 19. d4 {[%clk 0:01:49]}  Bg6 {[%clk 0:02:20]} 20. Rhg1 {[%clk 0:01:46]}  Bh5 {[%clk 0:02:15]} 21. Qc2 {[%clk 0:01:38]}  Bxd1 {[%clk 0:02:14]} 22. Rxd1 {[%clk 0:01:39]}  Qf5 {[%clk 0:01:56]} 23. b4 {[%clk 0:01:38]}  d5 {[%clk 0:01:33]} 24. c5 {[%clk 0:01:33]}  Rf8 {[%clk 0:01:23]} 25. Qa4 {[%clk 0:01:28]}  Kb8 {[%clk 0:01:19]} 26. Rd2 {[%clk 0:01:18]}  Qc8 {[%clk 0:01:12]} 27. Bf1 {[%clk 0:01:16]}  Ne8 {[%clk 0:01:02]} 28. c6 {[%clk 0:01:14]}  Bxe3 {[%clk 0:01:00]} 29. cxb7 {[%clk 0:01:07]}  Qxb7 {[%clk 0:00:36]} 30. Ba6 {[%clk 0:01:05]}  Bxd2 {[%clk 0:00:36]} 31. Bxb7 {[%clk 0:01:04]}  Bxc3 {[%clk 0:00:32]} 32. Bc6 {[%clk 0:00:49]}  Nd6 {[%clk 0:00:28]} 33. Bxc3 {[%clk 0:00:47]}  Rxf2+ {[%clk 0:00:27]} 34. Kb3 {[%clk 0:00:47]}  e3 {[%clk 0:00:12]} 35. Bxd5 {[%clk 0:00:47]}  e2 {[%clk 0:00:06]} 36. Qc6 {[%clk 0:00:46]}  Kc8 {[%clk 0:00:06]} 37. Be6+ {[%clk 0:00:22]}  Kb8 {[%clk 0:00:06]} 38. a4 {[%clk 0:00:21]}  Rf1 {[%clk 0:00:04]} 39. a5 {[%clk 0:00:16]}  e1=Q {[%clk 0:00:04]} 40. Bxe1 {[%clk 0:00:16]}  Rxe1 {[%clk 0:00:05]} 41. Bd5 {[%clk 0:00:15]}  Kc8 {[%clk 0:00:04]} 42. a6 {[%clk 0:00:15]}  Re3+ {[%clk 0:00:04]} 43. Kc2 {[%clk 0:00:14]}  Re2+ {[%clk 0:00:03]} 44. Kd3 {[%clk 0:00:14]}  Rde8 {[%clk 0:00:04]} 45. Qa8+ {[%clk 0:00:13]}  Kd7 {[%clk 0:00:03]} 46. Bc6+ {[%clk 0:00:14]}  Ke7 {[%clk 0:00:03]} 47. Bxe8 {[%clk 0:00:14]}  Re3+ {[%clk 0:00:00]} 48. Kxe3 {[%clk 0:00:14]} 1-0


[Site "https://www.chess.com"]

[Event "Titled Tuesday Blitz July 4 Late 2023"]
[White "Taranenko, Evgueniy"]
[Black "Salimova, Nurgyul"]
[WhiteFideId "14122138"]
[BlackFideId "2915138"]
[WhiteElo "2359"]
[BlackElo "2659"]
[Result "1-0"]
[Round "2"]
[TimeControl "180+2"]
[Date "2023.07.04"]
[WhiteClock "0:00:24"]
[BlackClock "0:00:00"]
[Board "73"]

1. e4 {[%clk 0:03:00]}  c6 {[%clk 0:02:55]} 2. d4 {[%clk 0:03:00]}  d5 {[%clk 0:02:55]} 3. e5 {[%clk 0:03:00]}  Bf5 {[%clk 0:02:55]} 4. Nc3 {[%clk 0:03:00]}  e6 {[%clk 0:02:51]} 5. g4 {[%clk 0:03:00]}  Bg6 {[%clk 0:02:52]} 6. Nge2 {[%clk 0:03:00]}  c5 {[%clk 0:02:50]} 7. h4 {[%clk 0:03:00]}  h5 {[%clk 0:02:51]} 8. Nf4 {[%clk 0:02:59]}  Bh7 {[%clk 0:02:51]} 9. g5 {[%clk 0:02:59]}  cxd4 {[%clk 0:02:25]} 10. Nb5 {[%clk 0:02:58]}  Nc6 {[%clk 0:02:22]} 11. Qxh5 {[%clk 0:02:52]}  g6 {[%clk 0:00:36]} 12. Qd1 {[%clk 0:02:39]}  Bb4+ {[%clk 0:00:28]} 13. Bd2 {[%clk 0:02:29]}  Bxd2+ {[%clk 0:00:21]} 14. Qxd2 {[%clk 0:02:30]}  Nge7 {[%clk 0:00:22]} 15. Bh3 {[%clk 0:01:49]}  Nxe5 {[%clk 0:00:18]} 16. O-O-O {[%clk 0:01:49]}  Qb6 {[%clk 0:00:16]} 17. Qxd4 {[%clk 0:01:34]}  Qxd4 {[%clk 0:00:06]} 18. Nxd4 {[%clk 0:01:35]}  Rc8 {[%clk 0:00:03]} 19. Rhe1 {[%clk 0:01:31]}  Nc4 {[%clk 0:00:03]} 20. b3 {[%clk 0:01:14]}  Nd6 {[%clk 0:00:03]} 21. Re2 {[%clk 0:00:40]}  O-O {[%clk 0:00:03]} 22. Kb2 {[%clk 0:00:36]}  Nef5 {[%clk 0:00:03]} 23. Nxf5 {[%clk 0:00:35]}  gxf5 {[%clk 0:00:03]} 24. c4 {[%clk 0:00:31]}  Ne4 {[%clk 0:00:03]} 25. h5 {[%clk 0:00:20]}  dxc4 {[%clk 0:00:03]} 26. g6 {[%clk 0:00:20]}  fxg6 {[%clk 0:00:03]} 27. hxg6 {[%clk 0:00:21]}  c3+ {[%clk 0:00:04]} 28. Kc2 {[%clk 0:00:21]}  Bxg6 {[%clk 0:00:03]} 29. Nxg6 {[%clk 0:00:21]}  Rf7 {[%clk 0:00:04]} 30. Nf4 {[%clk 0:00:20]}  Rh7 {[%clk 0:00:03]} 31. Rg1+ {[%clk 0:00:19]}  Kf7 {[%clk 0:00:04]} 32. f3 {[%clk 0:00:19]}  Nf6 {[%clk 0:00:03]} 33. Nxe6 {[%clk 0:00:20]}  Rh5 {[%clk 0:00:01]} 34. Ng5+ {[%clk 0:00:20]}  Kf8 {[%clk 0:00:02]} 35. Bxf5 {[%clk 0:00:20]}  Rc5 {[%clk 0:00:02]} 36. Ne6+ {[%clk 0:00:20]}  Kf7 {[%clk 0:00:03]} 37. Nxc5 {[%clk 0:00:21]}  Rxf5 {[%clk 0:00:03]} 38. Ne4 {[%clk 0:00:22]}  Nd5 {[%clk 0:00:03]} 39. Nd6+ {[%clk 0:00:22]}  Kf6 {[%clk 0:00:02]} 40. Nxf5 {[%clk 0:00:23]}  Kxf5 {[%clk 0:00:03]} 41. Re4 {[%clk 0:00:22]}  a5 {[%clk 0:00:02]} 42. Rh1 {[%clk 0:00:22]}  Nb4+ {[%clk 0:00:02]} 43. Rxb4 {[%clk 0:00:23]}  axb4 {[%clk 0:00:00]} 44. Rh4 {[%clk 0:00:24]} 1-0


[Site "https://www.chess.com"]

[Event "Titled Tuesday Blitz July 4 Late 2023"]
[White "Guerra Tulcan, Lenin"]
[Black "Shapiro, Daniel"]
[WhiteFideId "3601382"]
[BlackFideId "2001780"]
[WhiteElo "2654"]
[BlackElo "2337"]
[Result "1-0"]
[Round "2"]
[TimeControl "180+2"]
[Date "2023.07.04"]
[WhiteClock "0:00:22"]
[BlackClock "0:00:00"]
[Board "75"]

1. e4 {[%clk 0:02:58]}  e5 {[%clk 0:02:55]} 2. Nf3 {[%clk 0:02:58]}  Nc6 {[%clk 0:02:54]} 3. Bb5 {[%clk 0:02:58]}  a6 {[%clk 0:02:53]} 4. Ba4 {[%clk 0:02:58]}  Nf6 {[%clk 0:02:53]} 5. Qe2 {[%clk 0:02:58]}  b5 {[%clk 0:02:51]} 6. Bb3 {[%clk 0:02:58]}  Bd6 {[%clk 0:02:47]} 7. c3 {[%clk 0:02:58]}  Bb7 {[%clk 0:02:45]} 8. O-O {[%clk 0:02:58]}  O-O {[%clk 0:02:45]} 9. Rd1 {[%clk 0:02:58]}  Re8 {[%clk 0:02:45]} 10. d3 {[%clk 0:02:58]}  Na5 {[%clk 0:02:43]} 11. Bc2 {[%clk 0:02:58]}  c5 {[%clk 0:02:44]} 12. Nbd2 {[%clk 0:02:59]}  Bf8 {[%clk 0:02:40]} 13. Nf1 {[%clk 0:02:55]}  d5 {[%clk 0:02:38]} 14. Bg5 {[%clk 0:02:52]}  d4 {[%clk 0:02:25]} 15. Ng3 {[%clk 0:02:48]}  g6 {[%clk 0:02:21]} 16. cxd4 {[%clk 0:02:37]}  cxd4 {[%clk 0:02:08]} 17. a3 {[%clk 0:02:32]}  Nc6 {[%clk 0:01:57]} 18. Bb3 {[%clk 0:02:30]}  h6 {[%clk 0:01:53]} 19. Bd2 {[%clk 0:02:26]}  a5 {[%clk 0:01:53]} 20. h4 {[%clk 0:02:22]}  a4 {[%clk 0:01:43]} 21. Ba2 {[%clk 0:02:22]}  b4 {[%clk 0:01:43]} 22. axb4 {[%clk 0:02:21]}  Nxb4 {[%clk 0:01:35]} 23. Bxb4 {[%clk 0:02:09]}  Bxb4 {[%clk 0:01:33]} 24. h5 {[%clk 0:02:10]}  Kg7 {[%clk 0:01:26]} 25. Nh4 {[%clk 0:02:03]}  Qd7 {[%clk 0:01:08]} 26. Rdc1 {[%clk 0:01:45]}  Ba6 {[%clk 0:01:00]} 27. Bc4 {[%clk 0:01:24]}  Be7 {[%clk 0:00:41]} 28. Bxf7 {[%clk 0:00:51]}  Kxf7 {[%clk 0:00:31]} 29. hxg6+ {[%clk 0:00:50]}  Kg8 {[%clk 0:00:28]} 30. Nhf5 {[%clk 0:00:46]}  Bf8 {[%clk 0:00:28]} 31. Nh5 {[%clk 0:00:46]}  Nxh5 {[%clk 0:00:21]} 32. Qxh5 {[%clk 0:00:47]}  Bxd3 {[%clk 0:00:21]} 33. f3 {[%clk 0:00:42]}  Ra7 {[%clk 0:00:16]} 34. Kf2 {[%clk 0:00:34]}  Qd8 {[%clk 0:00:15]} 35. Nxh6+ {[%clk 0:00:30]}  Bxh6 {[%clk 0:00:15]} 36. Qxh6 {[%clk 0:00:31]}  Qf6 {[%clk 0:00:13]} 37. Rh1 {[%clk 0:00:29]}  Qg7 {[%clk 0:00:12]} 38. Qg5 {[%clk 0:00:29]}  Ra6 {[%clk 0:00:08]} 39. Rh6 {[%clk 0:00:27]}  Rae6 {[%clk 0:00:02]} 40. Rah1 {[%clk 0:00:25]}  Bc2 {[%clk 0:00:00]} 41. Rh8+ {[%clk 0:00:22]} 1-0


[Site "https://www.chess.com"]

[Event "Titled Tuesday Blitz July 4 Late 2023"]
[White "Cluke86"]
[Black "Ganiev, Roman"]
[BlackFideId "4131452"]
[WhiteElo "2306"]
[BlackElo "2637"]
[Result "0-1"]
[Round "2"]
[TimeControl "180+2"]
[Date "2023.07.04"]
[WhiteClock "0:00:07"]
[BlackClock "0:00:13"]
[Board "80"]

1. e4 {[%clk 0:03:00]}  c5 {[%clk 0:02:59]} 2. Nc3 {[%clk 0:03:00]}  d6 {[%clk 0:02:59]} 3. f4 {[%clk 0:02:58]}  g6 {[%clk 0:02:57]} 4. Nf3 {[%clk 0:02:58]}  Bg7 {[%clk 0:02:58]} 5. Bc4 {[%clk 0:02:57]}  e6 {[%clk 0:02:57]} 6. O-O {[%clk 0:02:57]}  Nc6 {[%clk 0:02:58]} 7. d3 {[%clk 0:02:57]}  Nge7 {[%clk 0:02:58]} 8. Qe1 {[%clk 0:02:53]}  O-O {[%clk 0:02:58]} 9. f5 {[%clk 0:02:51]}  gxf5 {[%clk 0:02:59]} 10. Bg5 {[%clk 0:02:41]}  f6 {[%clk 0:02:54]} 11. exf5 {[%clk 0:02:25]}  fxg5 {[%clk 0:02:41]} 12. Bxe6+ {[%clk 0:02:19]}  Bxe6 {[%clk 0:02:36]} 13. Qxe6+ {[%clk 0:02:18]}  Kh8 {[%clk 0:02:35]} 14. Nxg5 {[%clk 0:02:19]}  Bd4+ {[%clk 0:01:32]} 15. Kh1 {[%clk 0:02:15]}  Rf6 {[%clk 0:01:20]} 16. Qe4 {[%clk 0:01:39]}  Qg8 {[%clk 0:01:14]} 17. Qh4 {[%clk 0:01:34]}  Raf8 {[%clk 0:01:05]} 18. g4 {[%clk 0:01:28]}  d5 {[%clk 0:00:46]} 19. Rf3 {[%clk 0:01:24]}  Ne5 {[%clk 0:00:30]} 20. Rh3 {[%clk 0:01:22]}  h6 {[%clk 0:00:30]} 21. Ne2 {[%clk 0:01:18]}  Bf2 {[%clk 0:00:20]} 22. Qh5 {[%clk 0:00:54]}  Nf7 {[%clk 0:00:15]} 23. Ne6 {[%clk 0:00:47]}  Rc8 {[%clk 0:00:12]} 24. N2f4 {[%clk 0:00:46]}  d4 {[%clk 0:00:11]} 25. Rf1 {[%clk 0:00:18]}  Be3 {[%clk 0:00:11]} 26. Rff3 {[%clk 0:00:16]}  Bxf4 {[%clk 0:00:11]} 27. Nxf4 {[%clk 0:00:16]}  Qg5 {[%clk 0:00:11]} 28. Ng6+ {[%clk 0:00:14]}  Nxg6 {[%clk 0:00:11]} 29. fxg6 {[%clk 0:00:14]}  Qxh5 {[%clk 0:00:11]} 30. gxh5 {[%clk 0:00:14]}  Rxf3 {[%clk 0:00:11]} 31. Rxf3 {[%clk 0:00:15]}  Ng5 {[%clk 0:00:12]} 32. Rf5 {[%clk 0:00:14]}  Kg7 {[%clk 0:00:12]} 33. Rd5 {[%clk 0:00:14]}  Rc7 {[%clk 0:00:12]} 34. Rd6 {[%clk 0:00:14]}  b6 {[%clk 0:00:12]} 35. Kg2 {[%clk 0:00:14]}  Re7 {[%clk 0:00:12]} 36. h4 {[%clk 0:00:14]}  Ne6 {[%clk 0:00:12]} 37. Rd5 {[%clk 0:00:13]}  Nf4+ {[%clk 0:00:12]} 38. Kf3 {[%clk 0:00:07]}  Nxd5 {[%clk 0:00:13]} 0-1


[Site "https://www.chess.com"]

[Event "Titled Tuesday Blitz July 4 Late 2023"]
[White "Spichkin, Alexander"]
[Black "Skatchkov, Valery"]
[WhiteFideId "4144074"]
[BlackFideId "24195812"]
[WhiteElo "2283"]
[BlackElo "2632"]
[Result "0-1"]
[Round "2"]
[TimeControl "180+2"]
[Date "2023.07.04"]
[WhiteClock "0:00:58"]
[BlackClock "0:00:37"]
[Board "82"]

1. f4 {[%clk 0:03:00]}  d5 {[%clk 0:02:57]} 2. Nf3 {[%clk 0:03:00]}  g6 {[%clk 0:02:58]} 3. e3 {[%clk 0:02:56]}  Bg7 {[%clk 0:02:57]} 4. Be2 {[%clk 0:02:56]}  Nh6 {[%clk 0:02:58]} 5. O-O {[%clk 0:02:56]}  O-O {[%clk 0:02:59]} 6. d3 {[%clk 0:02:57]}  c5 {[%clk 0:02:59]} 7. Qe1 {[%clk 0:02:55]}  Qb6 {[%clk 0:02:55]} 8. e4 {[%clk 0:02:52]}  dxe4 {[%clk 0:02:48]} 9. dxe4 {[%clk 0:02:52]}  Bxb2 {[%clk 0:02:47]} 10. Bxb2 {[%clk 0:02:52]}  Qxb2 {[%clk 0:02:48]} 11. Qc3 {[%clk 0:02:51]}  Qxc3 {[%clk 0:02:47]} 12. Nxc3 {[%clk 0:02:51]}  Nc6 {[%clk 0:02:46]} 13. Nd5 {[%clk 0:02:51]}  Ng4 {[%clk 0:02:40]} 14. e5 {[%clk 0:02:48]}  Be6 {[%clk 0:02:35]} 15. Nc7 {[%clk 0:02:45]}  Ne3 {[%clk 0:02:28]} 16. Rfc1 {[%clk 0:02:38]}  Rac8 {[%clk 0:02:25]} 17. Nxe6 {[%clk 0:02:38]}  fxe6 {[%clk 0:02:26]} 18. Kf2 {[%clk 0:02:38]}  Nd5 {[%clk 0:02:24]} 19. g3 {[%clk 0:02:38]}  h6 {[%clk 0:02:21]} 20. Rab1 {[%clk 0:02:32]}  b6 {[%clk 0:02:19]} 21. Ba6 {[%clk 0:02:31]}  Rcd8 {[%clk 0:02:19]} 22. Bb5 {[%clk 0:02:31]}  Nd4 {[%clk 0:02:11]} 23. Nxd4 {[%clk 0:02:29]}  cxd4 {[%clk 0:02:12]} 24. Bc4 {[%clk 0:02:28]}  Kf7 {[%clk 0:02:10]} 25. Rb3 {[%clk 0:02:21]}  Nc3 {[%clk 0:02:05]} 26. Ra3 {[%clk 0:02:13]}  Rc8 {[%clk 0:02:04]} 27. Bd3 {[%clk 0:02:09]}  Rc7 {[%clk 0:02:05]} 28. g4 {[%clk 0:02:03]}  g5 {[%clk 0:02:04]} 29. fxg5 {[%clk 0:02:03]}  hxg5 {[%clk 0:02:05]} 30. Kg3 {[%clk 0:02:03]}  Kg7 {[%clk 0:02:06]} 31. h4 {[%clk 0:02:03]}  gxh4+ {[%clk 0:02:05]} 32. Kxh4 {[%clk 0:02:03]}  Rf3 {[%clk 0:02:06]} 33. g5 {[%clk 0:02:00]}  Nd5 {[%clk 0:02:02]} 34. Kg4 {[%clk 0:02:00]}  Re3 {[%clk 0:01:59]} 35. Rh1 {[%clk 0:01:59]}  Rxc2 {[%clk 0:01:49]} 36. Rh7+ {[%clk 0:01:52]}  Kg8 {[%clk 0:01:49]} 37. Bxc2 {[%clk 0:01:48]}  Rxa3 {[%clk 0:01:49]} 38. g6 {[%clk 0:01:49]}  Ne3+ {[%clk 0:01:49]} 39. Kg5 {[%clk 0:01:48]}  Nxc2 {[%clk 0:01:49]} 40. Rxe7 {[%clk 0:01:48]}  Rg3+ {[%clk 0:01:48]} 41. Kf6 {[%clk 0:01:48]}  Rf3+ {[%clk 0:01:47]} 42. Kxe6 {[%clk 0:01:49]}  d3 {[%clk 0:01:43]} 43. Rd7 {[%clk 0:01:49]}  Nb4 {[%clk 0:01:39]} 44. a3 {[%clk 0:01:48]}  Nc6 {[%clk 0:01:35]} 45. Kd6 {[%clk 0:01:47]}  Nd4 {[%clk 0:01:29]} 46. e6 {[%clk 0:01:42]}  d2 {[%clk 0:01:16]} 47. e7 {[%clk 0:01:42]}  Nf5+ {[%clk 0:01:16]} 48. Ke6 {[%clk 0:01:40]}  Ng7+ {[%clk 0:01:16]} 49. Ke5 {[%clk 0:01:40]}  Re3+ {[%clk 0:01:15]} 50. Kf6 {[%clk 0:01:39]}  Re6+ {[%clk 0:01:13]} 51. Kg5 {[%clk 0:01:39]}  Rxe7 {[%clk 0:01:13]} 52. Rxd2 {[%clk 0:01:38]}  Re5+ {[%clk 0:01:13]} 53. Kf6 {[%clk 0:01:38]}  Re6+ {[%clk 0:01:13]} 54. Kg5 {[%clk 0:01:38]}  Re3 {[%clk 0:01:13]} 55. Rd7 {[%clk 0:01:35]}  Ne6+ {[%clk 0:01:01]} 56. Kf6 {[%clk 0:01:34]}  Nf8 {[%clk 0:01:02]} 57. Rxa7 {[%clk 0:01:34]}  Re6+ {[%clk 0:01:02]} 58. Kf5 {[%clk 0:01:29]}  Rxg6 {[%clk 0:01:02]} 59. Rb7 {[%clk 0:01:29]}  Re6 {[%clk 0:00:59]} 60. Rb8 {[%clk 0:01:29]}  Kf7 {[%clk 0:00:59]} 61. Rb7+ {[%clk 0:01:26]}  Kg8 {[%clk 0:00:48]} 62. Rb8 {[%clk 0:01:26]}  Rh6 {[%clk 0:00:46]} 63. Ke5 {[%clk 0:01:25]}  Kf7 {[%clk 0:00:46]} 64. Kd5 {[%clk 0:01:25]}  Ke7 {[%clk 0:00:44]} 65. Kc4 {[%clk 0:01:25]}  Nd7 {[%clk 0:00:43]} 66. Rg8 {[%clk 0:01:23]}  Kd6 {[%clk 0:00:42]} 67. Kb5 {[%clk 0:01:23]}  Rh5+ {[%clk 0:00:42]} 68. Kb4 {[%clk 0:01:23]}  Kc7 {[%clk 0:00:41]} 69. Rg7 {[%clk 0:01:23]}  Rh4+ {[%clk 0:00:39]} 70. Kb5 {[%clk 0:01:24]}  Rh3 {[%clk 0:00:39]} 71. a4 {[%clk 0:01:23]}  Rh5+ {[%clk 0:00:39]} 72. Kb4 {[%clk 0:01:23]}  Rd5 {[%clk 0:00:39]} 73. Rh7 {[%clk 0:01:22]}  Kc6 {[%clk 0:00:39]} 74. Rh6+ {[%clk 0:01:22]}  Kb7 {[%clk 0:00:39]} 75. Rh7 {[%clk 0:01:23]}  Ka6 {[%clk 0:00:40]} 76. Rg7 {[%clk 0:01:23]}  Nb8 {[%clk 0:00:40]} 77. Rg8 {[%clk 0:01:21]}  Nc6+ {[%clk 0:00:40]} 78. Kc4 {[%clk 0:01:06]}  Rd4+ {[%clk 0:00:39]} 79. Kb3 {[%clk 0:01:07]}  Na5+ {[%clk 0:00:39]} 80. Ka3 {[%clk 0:01:05]}  Rd3+ {[%clk 0:00:39]} 81. Ka2 {[%clk 0:01:03]}  Kb7 {[%clk 0:00:39]} 82. Rg6 {[%clk 0:01:03]}  Nc4 {[%clk 0:00:37]} 83. Rh6 {[%clk 0:01:01]}  Ra3+ {[%clk 0:00:37]} 84. Kb1 {[%clk 0:01:02]}  Rxa4 {[%clk 0:00:37]} 85. Kc2 {[%clk 0:01:02]}  Na5 {[%clk 0:00:37]} 86. Kb2 {[%clk 0:01:02]}  Ka6 {[%clk 0:00:36]} 87. Rg6 {[%clk 0:01:02]}  Rc4 {[%clk 0:00:36]} 88. Ka3 {[%clk 0:01:02]}  Rc6 {[%clk 0:00:37]} 89. Kb4 {[%clk 0:00:58]}  Rxg6 {[%clk 0:00:37]} 0-1


[Site "https://www.chess.com"]

[Event "Titled Tuesday Blitz July 4 Late 2023"]
[White "Osmonbekov, Talaibek"]
[Black "Filgueira, Hernan"]
[WhiteFideId "2017253"]
[BlackFideId "101770"]
[WhiteElo "2150"]
[BlackElo "2617"]
[Result "0-1"]
[Round "2"]
[TimeControl "180+2"]
[Date "2023.07.04"]
[WhiteClock "0:00:00"]
[BlackClock "0:00:45"]
[Board "86"]

1. d4 {[%clk 0:03:00]}  d6 {[%clk 0:02:56]} 2. Bf4 {[%clk 0:03:00]}  Nd7 {[%clk 0:02:54]} 3. Nf3 {[%clk 0:02:59]}  Ngf6 {[%clk 0:02:54]} 4. Nc3 {[%clk 0:02:59]}  Nh5 {[%clk 0:02:51]} 5. e3 {[%clk 0:02:43]}  Nxf4 {[%clk 0:02:50]} 6. exf4 {[%clk 0:02:44]}  g6 {[%clk 0:02:50]} 7. h4 {[%clk 0:02:44]}  Nf6 {[%clk 0:02:49]} 8. Be2 {[%clk 0:02:40]}  Bg7 {[%clk 0:02:46]} 9. Qd2 {[%clk 0:02:39]}  c6 {[%clk 0:02:46]} 10. O-O-O {[%clk 0:02:34]}  Qa5 {[%clk 0:02:44]} 11. Kb1 {[%clk 0:02:32]}  Be6 {[%clk 0:02:43]} 12. Ng5 {[%clk 0:02:24]}  Bf5 {[%clk 0:02:29]} 13. f3 {[%clk 0:02:12]}  h6 {[%clk 0:02:27]} 14. g4 {[%clk 0:02:01]}  Bd7 {[%clk 0:02:27]} 15. Nge4 {[%clk 0:01:58]}  b5 {[%clk 0:02:18]} 16. Rde1 {[%clk 0:01:36]}  b4 {[%clk 0:02:15]} 17. Nxf6+ {[%clk 0:01:35]}  Bxf6 {[%clk 0:02:11]} 18. Ne4 {[%clk 0:01:35]}  Bg7 {[%clk 0:02:05]} 19. h5 {[%clk 0:01:34]}  Be6 {[%clk 0:02:02]} 20. b3 {[%clk 0:01:25]}  c5 {[%clk 0:01:51]} 21. d5 {[%clk 0:01:00]}  Bd7 {[%clk 0:01:46]} 22. a4 {[%clk 0:01:00]}  O-O-O {[%clk 0:01:39]} 23. hxg6 {[%clk 0:00:55]}  fxg6 {[%clk 0:01:39]} 24. Qd3 {[%clk 0:00:48]}  Kb8 {[%clk 0:01:38]} 25. Bd1 {[%clk 0:00:30]}  Bxa4 {[%clk 0:01:34]} 26. bxa4 {[%clk 0:00:21]}  Qxa4 {[%clk 0:01:34]} 27. c3 {[%clk 0:00:21]}  b3 {[%clk 0:01:28]} 28. Rh2 {[%clk 0:00:20]}  Ka8 {[%clk 0:01:24]} 29. Rb2 {[%clk 0:00:20]}  c4 {[%clk 0:01:22]} 30. Qe3 {[%clk 0:00:17]}  Rb8 {[%clk 0:01:21]} 31. Nd2 {[%clk 0:00:16]}  Rb6 {[%clk 0:01:11]} 32. Kc1 {[%clk 0:00:16]}  Rc8 {[%clk 0:01:05]} 33. Nb1 {[%clk 0:00:15]}  Rc7 {[%clk 0:01:02]} 34. Qe6 {[%clk 0:00:14]}  Qe8 {[%clk 0:00:59]} 35. Kd2 {[%clk 0:00:11]}  Qf8 {[%clk 0:00:59]} 36. Ke2 {[%clk 0:00:05]}  g5 {[%clk 0:00:58]} 37. f5 {[%clk 0:00:05]}  Bf6 {[%clk 0:00:57]} 38. Kf2 {[%clk 0:00:05]}  a5 {[%clk 0:00:57]} 39. Kg2 {[%clk 0:00:04]}  a4 {[%clk 0:00:55]} 40. Na3 {[%clk 0:00:04]}  Qb8 {[%clk 0:00:53]} 41. Qe3 {[%clk 0:00:03]}  Rc5 {[%clk 0:00:52]} 42. Be2 {[%clk 0:00:03]}  Qc7 {[%clk 0:00:49]} 43. Rd1 {[%clk 0:00:02]}  Rb8 {[%clk 0:00:47]} 44. Qe4 {[%clk 0:00:00]}  Rc8 {[%clk 0:00:45]} 0-1


[Site "https://www.chess.com"]

[Event "Titled Tuesday Blitz July 4 Late 2023"]
[White "Sun, Rick"]
[Black "Mangialardo, Tiago Carvalho"]
[WhiteFideId "30909481"]
[BlackFideId "2130718"]
[WhiteElo "2614"]
[BlackElo "2118"]
[Result "1/2-1/2"]
[Round "2"]
[TimeControl "180+2"]
[Date "2023.07.04"]
[WhiteClock "0:00:07"]
[BlackClock "0:00:02"]
[Board "87"]

1. d4 {[%clk 0:03:00]}  Nf6 {[%clk 0:03:00]} 2. Nc3 {[%clk 0:03:01]}  c5 {[%clk 0:02:53]} 3. d5 {[%clk 0:03:01]}  g6 {[%clk 0:02:52]} 4. e4 {[%clk 0:03:00]}  d6 {[%clk 0:02:50]} 5. Nf3 {[%clk 0:03:00]}  Bg7 {[%clk 0:02:50]} 6. a4 {[%clk 0:02:59]}  O-O {[%clk 0:02:50]} 7. Be2 {[%clk 0:02:58]}  e6 {[%clk 0:02:45]} 8. O-O {[%clk 0:02:52]}  exd5 {[%clk 0:02:44]} 9. exd5 {[%clk 0:02:53]}  h6 {[%clk 0:02:31]} 10. Re1 {[%clk 0:02:52]}  Re8 {[%clk 0:02:30]} 11. h3 {[%clk 0:02:48]}  Nbd7 {[%clk 0:02:12]} 12. Bf4 {[%clk 0:02:44]}  Ne5 {[%clk 0:02:08]} 13. Nxe5 {[%clk 0:02:33]}  dxe5 {[%clk 0:02:08]} 14. Be3 {[%clk 0:02:33]}  b6 {[%clk 0:02:01]} 15. a5 {[%clk 0:02:21]}  Bb7 {[%clk 0:01:55]} 16. Bc4 {[%clk 0:02:18]}  Re7 {[%clk 0:01:24]} 17. a6 {[%clk 0:01:35]}  Bc8 {[%clk 0:01:12]} 18. Nb5 {[%clk 0:01:30]}  Ne8 {[%clk 0:00:59]} 19. d6 {[%clk 0:01:24]}  Rd7 {[%clk 0:00:59]} 20. Qf3 {[%clk 0:00:58]}  Rb8 {[%clk 0:00:51]} 21. Red1 {[%clk 0:00:57]}  Kh7 {[%clk 0:00:35]} 22. Bxf7 {[%clk 0:00:38]}  Nxd6 {[%clk 0:00:34]} 23. Nxd6 {[%clk 0:00:33]}  Rxd6 {[%clk 0:00:35]} 24. Rxd6 {[%clk 0:00:19]}  Qxd6 {[%clk 0:00:36]} 25. Rd1 {[%clk 0:00:18]}  Qe7 {[%clk 0:00:34]} 26. Bc4 {[%clk 0:00:12]}  Bf5 {[%clk 0:00:32]} 27. Rd2 {[%clk 0:00:09]}  e4 {[%clk 0:00:28]} 28. Qf4 {[%clk 0:00:08]}  Rd8 {[%clk 0:00:20]} 29. c3 {[%clk 0:00:07]}  Rxd2 {[%clk 0:00:18]} 30. Bxd2 {[%clk 0:00:08]}  Qd7 {[%clk 0:00:11]} 31. g4 {[%clk 0:00:07]}  Be6 {[%clk 0:00:04]} 32. Bxe6 {[%clk 0:00:06]}  Qxe6 {[%clk 0:00:04]} 33. Qc7 {[%clk 0:00:06]}  Qd5 {[%clk 0:00:02]} 34. Bf4 {[%clk 0:00:05]}  Qd1+ {[%clk 0:00:02]} 35. Kh2 {[%clk 0:00:06]}  Qf3 {[%clk 0:00:03]} 36. Bg3 {[%clk 0:00:06]}  h5 {[%clk 0:00:03]} 37. Qxa7 {[%clk 0:00:05]}  e3 {[%clk 0:00:01]} 38. Qe7 {[%clk 0:00:03]}  exf2 {[%clk 0:00:02]} 39. Bxf2 {[%clk 0:00:03]}  Qxf2+ {[%clk 0:00:02]} 40. Kh1 {[%clk 0:00:04]}  Qf1+ {[%clk 0:00:03]} 41. Kh2 {[%clk 0:00:04]}  Qf2+ {[%clk 0:00:03]} 42. Kh1 {[%clk 0:00:05]}  hxg4 {[%clk 0:00:03]} 43. hxg4 {[%clk 0:00:05]}  Qf1+ {[%clk 0:00:03]} 44. Kh2 {[%clk 0:00:05]}  Qf2+ {[%clk 0:00:03]} 45. Kh3 {[%clk 0:00:06]}  Qf3+ {[%clk 0:00:04]} 46. Kh2 {[%clk 0:00:06]}  Qf2+ {[%clk 0:00:04]} 47. Kh1 {[%clk 0:00:07]}  Qf1+ {[%clk 0:00:03]} 48. Kh2 {[%clk 0:00:07]}  Qf2+ {[%clk 0:00:02]} 1/2-1/2


[Site "https://www.chess.com"]